Cogmind - Beta 15 @@@ ROGUE MODE // 2025.06.14 @ 17:22:22 Player: the Result: Destroyed by D-53 Grenadier with Mini Grenade Launcher Performance ------------- Evolutions (0) 0 Regions Visited (2) 400 Robots Destroyed (34) 170 Value Destroyed (673) 673 Prototype IDs (0) 0 Alien Tech Used (0) 0 Bonus (0) 0 TOTAL SCORE: 1243 Bonus ------- None Cogmind --------- Core Integrity 0/250 Matter 255/300 Energy 160/160 System Corruption 0% Temperature Cool (20) Movement Rolling (140) Ox4 Location -10/Mines Parts ------- > --- POWER (1) -------- Light Nuclear Core > --- PROPULSION (2) --- Wheel Wheel > --- UTILITY (2) ------ Huge Storage Unit > --- WEAPON (2) ------- Slug Cannon > --- INVENTORY (25) --- Light Ion Engine Light Ion Engine Light Ion Engine Light Treads Light Treads Wheel Wheel Wheel Wheel Wheel Wheel Wheel Structural Scanner Structural Scanner Seismic Detector Medium Laser Light Assault Rifle Grenade Launcher Grenade Launcher Mining Laser Peak State ------------ > --- POWER ------------ Light Nuclear Core > --- PROPULSION ------- Wheel Wheel > --- UTILITY ---------- Huge Storage Unit Tractor Beam > --- WEAPON ----------- Slug Cannon Grenade Launcher > --- INVENTORY -------- Light Ion Engine Light Ion Engine Light Ion Engine Light Treads Light Treads Wheel Wheel Wheel Wheel Wheel Wheel Wheel Structural Scanner Structural Scanner Seismic Detector Medium Laser Light Assault Rifle Grenade Launcher Grenade Launcher Mining Laser [Rating: 14] Favorites ----------- Power Ion Engine Engine Ion Engine Power Core Light Nuclear Core Propulsion Wheel Wheel Wheel Utility Seismic Detector Device Seismic Detector Storage Large Storage Unit Weapon EM Pulse Gun Energy Gun EM Pulse Gun Ballistic Gun Light Assault Rifle Ballistic Cannon Slug Cannon Launcher Grenade Launcher Special Weapon Mining Laser Build | -11 -10 -10 ------- Run | Yrd Mat Min Slots Evolved . | . . . Power . | . . . Propulsion . | . . . Utility . | . . . Weapon . | . . . Parts Attached 29 | 7 11 11 Power 6 | 1 2 3 Engine 5 | 1 2 2 Core 1 | . . 1 Reactor . | . . . Propulsion 9 | 2 3 4 Treads . | . . . Leg . | . . . Wheel 9 | 2 3 4 Hover . | . . . Flight . | . . . Utility 7 | 2 3 2 Device 4 | 1 1 2 Storage 3 | 1 2 . Processor . | . . . Hackware . | . . . Protection . | . . . Artifact . | . . . Weapon 7 | 2 3 2 Energy Gun 3 | 1 1 1 Energy Cannon . | . . . Ballistic Gun 1 | 1 . . Ballistic Cannon 1 | . . 1 Launcher 1 | . 1 . Special Weapon 1 | . 1 . Impact Weapon . | . . . Slashing Weapon . | . . . Piercing Weapon . | . . . Special Melee Weapon . | . . . Unidentified Prototypes . | . . . Parts Lost 9 | . 5 4 Power 2 | . 1 1 Propulsion 2 | . 2 . Utility 2 | . 1 1 Weapon 3 | . 1 2 Highest Loss Streak 2 | . 2 2 To Critical Strikes . | . . . Average Backups 12 | 3 11 16 Power 1 | . 1 2 Propulsion 5 | 2 5 6 Utility 1 | . 1 2 Weapon 3 | 1 3 4 Tool/Special . | . . . Unused Backups 11 | . 1 10 Power 2 | . . 2 Propulsion 5 | . . 5 Utility 2 | . 1 1 Weapon 2 | . . 2 Tool/Special . | . . . Average Slot Usage (%) 95 | . 95 95 Engine 11 | . 13 7 Wheel 27 | . 26 28 Device 11 | . 10 12 Storage 16 | . 17 15 Energy Gun 13 | . 14 12 Ballistic Gun 6 | . 8 . Launcher 3 | . . 12 Special Weapon 1 | . 2 . Peak Build Rating 14 | 7 8 14 Average Rating 7 | 5 7 8 On Entrance 5 | . 7 8 Naked Turns . | . . . Heaviest Build 110 | 14 110 110 Greatest Support 26 | 26 26 20 Greatest Overweight (x) 10 | . 10 5 Average Overweight (x) 2 | . 1 4 Largest Inventory Capacity 25 | 8 25 25 Average Capacity 18 | 7 16 25 Most Carried 20 | 7 16 20 Average Carried 12 | 4 11 16 Final Capacity 25 | 8 25 25 Final Carried 20 | 7 16 20 Class Distribution -------------------- 87% | Mutant 12% | Scavenger-Mutant Dominant Class ---------------- Mutant | -10/Materials Scavenger-Mutant | -10/Mines Resources | -11 -10 -10 ----------- Run | Yrd Mat Min Matter Collected 625 | 266 115 244 Remotely 148 | . . 148 Salvage Created 1114 | 46 898 170 Parts 67 | 7 42 18 Haulers Intercepted 2 | . 2 . Recyclers Shooed 1 | . 1 . Parts Field Recycled . | . . . Retrieved Matter . | . . . Parts Self-Destructed . | . . . Prevented . | . . . Kills | -11 -10 -10 ------- Run | Yrd Mat Min Combat Hostiles Destroyed 19 | . 10 9 Guns 9 | . 8 1 AOE 10 | . 2 8 Classes Destroyed 10 | 1 6 3 Worker 3 | . 3 . Builder 3 | . 3 . Tunneler 5 | 2 . 3 Hauler 2 | . 2 . Recycler 2 | . 1 1 Watcher 3 | . 3 . Swarmer 3 | . . 3 Grunt 12 | . 10 2 Demolisher 1 | . . 1 Assembled 3 | . . 3 Best Kill Streak 7 | 1 7 4 Combat Bots Only 4 | . 4 4 Max Kills in Single Turn 3 | 1 2 3 Gunslinging . | . . . Exploded 3 | . 1 3 Melee . | . . . Uniques/NPCs Destroyed . | . . . Combat | -11 -10 -10 -------- Run | Yrd Mat Min Hostile Shots Fired 76 | . 58 18 Missed 24 | . 23 1 Hits 52 | . 35 17 Projectile 52 | . 35 17 AOE 11 | . . 11 Critical Strikes 1 | . 1 . Damage Taken 1077 | . 496 581 Core 251 | . 91 160 Absorbed by Shields . | . . . Core Remaining (%) 100 | 100 . . Volleys Fired 109 | 4 81 24 Largest 2 | 1 2 2 Hottest 100 | 40 100 70 Shots Fired 118 | 4 86 28 Gun 99 | 4 85 10 Cannon 5 | . . 5 Launcher 13 | . . 13 Special 1 | . 1 . Kinetic 10 | . . 10 Thermal 4 | . 1 3 Explosive 13 | . . 13 Electromagnetic 91 | 4 85 2 Robot Hit Streak 9 | 2 6 9 Robot Miss Streak 3 | 1 3 3 Penetration Max . | . . . Secondary Targets 1 | . . 1 Max Gunslinging Chain 1 | . . 1 Shots Hit Robots 73 | 3 53 17 Core Hits 51 | 2 31 18 Critical Kills . | . . . Critical Parts Destroyed 1 | . . 1 Critical Strikes 3 | . 2 1 Destroy 1 | . . 1 Corrupt 2 | . 2 . Melee Attacks . | . . . Impact . | . . . Slashing . | . . . Piercing . | . . . Sneak Attacks . | . . . Combat Hostiles . | . . . Follow-up Attacks . | . . . Damage Inflicted 2055 | 38 1278 739 Guns 942 | 38 823 81 Cannons 61 | . . 61 Explosions 1052 | . 455 597 Melee . | . . . Ramming . | . . . Kinetic 83 | . . 83 Thermal 492 | . 455 37 Explosive 597 | . . 597 Electromagnetic 883 | 38 823 22 Impact . | . . . Slashing . | . . . Piercing . | . . . Highest Corruption . | . . . Average Corruption . | . . . Corruption Purged . | . . . Corruption Blocked . | . . . Overload Shots . | . . . Overflow Damage 9 | . 2 7 Projectiles . | . . . Explosions 9 | . 2 7 Melee . | . . . Knockbacks . | . . . Impact . | . . . Kinetic . | . . . Secondary . | . . . Self-Inflicted Damage 100 | . 15 85 Shots 6 | . 1 5 Rammed . | . . . Targets Rammed . | . . . Kicked . | . . . Crushed . | . . . Highest Temperature 129 | . 129 55 Average Temperature 36 | . 40 16 Received Heat Transfer 374 | . 276 98 Siege Activations . | . . . Martial Activations . | . . . Shielding Activations . | . . . Robots Disrupted 1 | . 1 . Combat Hostiles 1 | . 1 . Robots Corrupted 1 | . 1 . Combat Hostiles . | . . . Parts Fried 5 | . 5 . Impact Corruptions . | . . . Robots Melted . | . . . Combat Hostiles . | . . . Parts Melted . | . . . Heat Transferred 461 | . 350 111 Parts Sabotaged . | . . . Parts Stolen . | . . . Parts Stripped . | . . . Power Chain Reactions 6 | . 6 . Alert | -11 -10 -10 ------- Run | Yrd Mat Min Maximum Alert Level . | . . . Low Security (%) 100 | 100 100 100 Level 1 . | . . . Level 2 . | . . . Level 3 . | . . . Level 4 . | . . . Level 5 . | . . . High Security . | . . . Max Security . | . . . Peak Influence 160 | 5 160 145 Initial 33 | . . 33 Average 63 | . 55 101 Influence Increases 623 | 10 380 233 Destroy 0b10 Robot/C 320 | . 200 120 Destroy 0b10 Robot/NC 90 | 10 60 20 Destroy Leader 90 | . 60 30 Allied During Kill 2 | . 2 . Successful Hack 26 | . 26 . Destroy Structure 65 | . 17 48 Lose Combat Pursuer 30 | . 15 15 Influence Decreases 537 | 10 295 232 Entered New Map 52 | . . 52 Time Decay 375 | 10 225 140 Lost Part 90 | . 50 40 Lost Ally 20 | . 20 . Squads Dispatched 2 | . 2 . Investigation 1 | . 1 . Extermination . | . . . Reinforcement 1 | . 1 . Assault . | . . . Garrison . | . . . Intercept . | . . . Searches Triggered . | . . . Construction Impeded . | . . . Haulers Reinforced . | . . . Active Scanning Responses . | . . . Cargo Convoy Interrupts . | . . . Stealth | -11 -10 -10 --------- Run | Yrd Mat Min Distress Signals 1 | . 1 . Communications Jammed . | . . . Distress Signals . | . . . Times Spotted 26 | . 18 8 Peak Tracking Total 4 | . 4 4 Tactical Retreats 2 | . 1 1 Traps | -11 -10 -10 ------- Run | Yrd Mat Min Traps Triggered 1 | . 1 . Indirectly . | . . . Trap Hack Attempts . | . . . Triggered . | . . . Disarmed . | . . . Reprogrammed . | . . . Reused . | . . . Traps Extracted . | . . . Installed . | . . . Triggered . | . . . Machines | -11 -10 -10 ---------- Run | Yrd Mat Min Machines Disabled . | . . . Max in Single Turn . | . . . Machines Repaired . | . . . Machines Dismantled . | . . . Machines Sabotaged . | . . . Overloaded Fab Kills . | . . . Hacking | -11 -10 -10 --------- Run | Yrd Mat Min Machines Accessed 4 | . 4 . Terminals 4 | . 4 . Fabricators . | . . . Repair Stations . | . . . Recycling Units . | . . . Scanalyzers . | . . . Garrison Access . | . . . Total Hacks 10 | . 10 . Successful 4 | . 4 . Failed 6 | . 6 . Catastrophic 2 | . 2 . Database Lockouts . | . . . Manual 10 | . 10 . Terminals 10 | . 10 . Fabricators . | . . . Repair Stations . | . . . Recycling Units . | . . . Scanalyzers . | . . . Garrison Access . | . . . Terminal Hacks 1 | . 1 . Recall Reinforcements 1 | . 1 . Fabricator Hacks . | . . . Repair Station Hacks . | . . . Recycling Unit Hacks . | . . . Scanalyzer . | . . . Garrison Access Hacks . | . . . Unauthorized Hacks 3 | . 3 . Terminals 3 | . 3 . Botnet 2 | . 2 . Operators 1 | . 1 . Fabricators . | . . . Repair Stations . | . . . Recycling Units . | . . . Scanalyzers . | . . . Garrison Access . | . . . Data Cores Recovered . | . . . Used . | . . . Hacking Detections 4 | . 4 . Full Trace Events . | . . . Feedback Events . | . . . Feedback Blocked . | . . . Robot Schematics Acquired . | . . . Robots Built . | . . . Authchips . | . . . Time . | . . . Total Robot Build Rating . | . . . Part Schematics Acquired . | . . . Parts Built . | . . . Authchips . | . . . Time . | . . . Total Part Build Rating . | . . . Parts Repaired . | . . . Time . | . . . Parts Recycled . | . . . Recycled Matter . | . . . Retrieved Matter . | . . . Retrieved Components . | . . . Parts Scanalyzed . | . . . Part Schematics Acquired . | . . . Parts Damaged . | . . . Bothacking | -11 -10 -10 ------------ Run | Yrd Mat Min Used RIF Installer . | . . . Robots Hacked . | . . . Non-combat . | . . . Combat . | . . . Robot Hacks Applied . | . . . Relay Couplers Released . | . . . Fabnet Peak Effective % . | . . . Robots Rewired 1 | . 1 . Allies Hacked . | . . . Hacks Repelled . | . . . Allies | -11 -10 -10 -------- Run | Yrd Mat Min Total Allies 1 | . 1 . Largest Group 1 | . 1 . Highest-Rated Group 8 | . 8 . Highest-Rated Ally 8 | . 8 . Total Orders . | . . . Ally Attacks 3 | . 3 . Total Damage 23 | . 23 . Kills . | . . . Allies Corrupted . | . . . Allies Melted . | . . . Intel | -11 -10 -10 ------- Run | Yrd Mat Min Active Infowar (turns) 786 | 45 595 146 Structural 34 | . 34 . Seismic 752 | 45 561 146 Robot Analysis Total . | . . . Derelict Logs Recovered . | . . . Drone Launches . | . . . Drone Recoveries . | . . . Exploration | -11 -10 -10 ------------- Run | Yrd Mat Min Turns Passed 1159 | 81 784 294 Spaces Moved 717 | 64 495 158 Core 5 | 5 . . Treads . | . . . Legs . | . . . Wheels 712 | 59 495 158 Hover . | . . . Flight . | . . . Fastest Speed 50 | 50 90 140 Average Speed 115 | 87 111 140 Slowest Speed 230 | 100 230 155 Overloaded Moves . | . . . Propulsion Burnouts . | . . . Robots Hopped . | . . . Potential Cave-ins 3 | . . 3 Cave-ins Triggered . | . . . Exploration Rate (%) 39 | 4 90 24 Regions Visited 2 Branch Regions 1 Pre-discovered Areas . | . . . Known Exits Taken . | . . . Unknown Exits Taken 2 | 1 1 . Scrap Searched . | . . . Spaces Dug 11 | . 1 10 Terrain Destroyed 81 | . 17 64 Melee . | . . . Projectile 4 | . 1 3 AOE 77 | . 16 61 Terrain Rammed . | . . . Walls Destroyed . | . . . Machines Disabled . | . . . Actions | -11 -10 -10 --------- Run | Yrd Mat Min Total 917 | 81 637 199 Wait 30 | . 30 . Move 715 | 63 494 158 Hop . | . . . Pick Up 21 | 7 13 1 Fast Attach 9 | 7 1 1 Attach 7 | . 4 3 Detach 1 | . . 1 Swap 18 | . 9 9 Drop 6 | . 4 2 Fire 109 | 4 81 24 Melee . | . . . Ram . | . . . Kick . | . . . Crush . | . . . Escape Stasis . | . . . Rewire 1 | . 1 . Trap . | . . . Miscellaneous . | . . . Route ------- -11/Scrapyard -10/Materials (discovered 3 exits: [*Mat] / [*Min x2]) -10/Mines History --------- Turn | Location | Event 21 | -11/Scrapyard | Discovered new exit (range 16) 82 | -11/Scrapyard | Entered Materials 207 | -10/Materials | Discovered new exit (range 13) 268 | -10/Materials | Discovered new exit (range 7) 316 | -10/Materials | Build established: Mutant 738 | -10/Materials | Discovered new exit (range 16) 866 | -10/Materials | Entered Mines 867 | -10/Mines | Assembled infested the area 956 | -10/Mines | Core integrity fell below 50% 960 | -10/Mines | Core integrity fell below 20% 1121 | -10/Mines | A weapon hastily lodged in a ceiling crevice suddenly fell to the ground 1160 | -10/Mines | Destroyed by D-53 Grenadier with Mini Grenade Launcher Last Messages --------------- 01082_ The unstable cave ceiling collapses. 01084_ Acquired 25 matter. 01090_ Acquired 106 matter. 01090_ The unstable cave ceiling collapses. 01094_ Acquired 5 matter. 01094_ The unstable cave ceiling collapses. 01121_ A Slug Cannon has been hastily shoved under some rubble with a note attached: "It's not as slow as it sounds." 01124_ Acquired Slug Cannon. 01146_ K-01 Serf collects debris. 01150_ Slug penetrates Wall. 01151_ Tractor Beam destroyed. 01155_ K-01 Serf collects debris. 01155_ K-01 Serf destroyed. 01156_ The unstable cave ceiling collapses. 01157_ Grenade Launcher destroyed. 01158_ D-53 Grenadier suffers critical hit (Destroy). 01158_ Destroyed Cmb. Airjet. Map ----- +----------------------------------------------------+ | ???????????????????????### # ##????????????????? | | ????????????????????????# ########??????????? | | ????????????????????????# # #??????????? | | ????????????????????????# ### ##?????????? | | ????????????????????????## ##????????? | | ?????????????????????????## #????????? | | ?????????????????????????# ## #????????? | | ?????????????????????????# ## #????????? | | ????????????????###??????# #### #????????? | | ????????????????? #???### # #### #????????? | | ?????????????? ?? #??# ### # ##????????? | | ????????????? % ?? ?# #### # # #?????????? | | ??????????????? ??# ## #?###### #?????????? | | ???????????????? ??# # #??????#*#?????????? | | ?????????????????# ?## #??#####=#?????????? | | ???????????# # ## ## #??# #?????????? | | ??????????# ##?##%#####?????????? | | ????????? # ###;# #?????????????? | | ?????????? ?## d #?????????????? | | ??????????#####??## # r #?????????????? | | ?????????????## ??# ## ####????####?????? | | ????????????## ### #??????## ###???? | | ????????????# #??##### #???? | | ????????????# ##?## #???? | | ????????????# #### #???? | | ????????????### ### @ ##???? | | ??????????????#???## #####????? | | ???????????????????# ## ##????????? | | ??????????????????# # #### ##?????????? | | ?????????????????# # # ## #??####??????????? | | ???????????????? ###?#### #????????????????? | | ?????????????? ???????# #????????????????? | | ?????????????###### ???????? #????????????????? | | ??????????????????# ?????????# #????????????????? | | ??????????????????#??????????# #????????????????? | | ?????????????????????????????? ?????????????????? | | ?????????????????????????????? ?????????????????? | | ?????????????????????????????? ?????????????????? | | ?????????????????????????????? ?????????????????? | | ?????????????????????????????? ?????????????????? | | ?????????????????????????????? ?????????????????? | | ?????????????????????????????? ?????????????????? | | ????????????????????????????????????????????????? | | ????????????????????????????????????????????????? | | ????????????????????????????????????????????????? | | ????????????????????????????????????????????????? | | ????????????????????????????????????????????????? | | ????????????????????????????????????????????????? | | ????????????????????????????????????????????????? | | ????????????????????????????????????????????????? | +----------------------------------------------------+ Best States ------------- Heat Dissipation 25 Energy Generation 14 Energy Capacity 250 Matter Stores 300 Matter Capacity 300 Sight Range 16 Terrain Scan Density 10 Evasion (%) 42 Item Schematics ----------------- None Robot Schematics ------------------ None Fabricated ------------ Nothing Repaired ---------- Nothing Alien Tech Used ----------------- None Achievements -------------- None Challenges ------------ None Game ------ Seed PotentialShadingRipteeth Manual? 0 Play Time 00:14:04 Cumulative 152.5 hours Start 2025.06.14 @ 17:02:02 End 2025.06.14 @ 17:22:22 Sessions 1 Manual Loads 0 Difficulty Rogue Special Mode None Game No. 106 Rogue 106 Adventurer 0 Explorer 0 Win Type - Total 1 Types 1/0/0/0/0/0/0/0/0/0 Lore% 50 Gallery% 52 Achievement% 47 Wizard Run 0 Options --------- Layout 1 ASCII 0 Keyboard 0 Movement Mouse Keybinds 0 Fullscreen 1 Font 24/Smallcaps Map View 50x35 Zoom Use 0% Tactical HUD 1 Map Filters NONE Filters NONE Steam 1 RUN: f3e10fe4-e4bd-4893-81ef-73a221a6be2b